[Event "*** SCC Grand Prix: Titled Tuesday Blitz"]
[Site "Chess.com"]
[Date "2020.10.06"]
[Round "8"]
[White "PowerThinking2650"]
[Black "Margency"]
[Result "0-1"]
[WhiteElo "2401"]
[BlackElo "2661"]
[TimeControl "180+1"]
[EndTime "11:35:31 PDT"]
[Termination "Margency won on time"]

1. e4 {[%clk 0:03:00.9]} 1... c5 {[%clk 0:02:59.6]} 2. Nf3 {[%clk 0:02:41.7]}
2... d6 {[%clk 0:02:59.8]} 3. d4 {[%clk 0:02:40.2]} 3... cxd4 {[%clk 0:03:00.7]}
4. Nxd4 {[%clk 0:02:40.3]} 4... Nf6 {[%clk 0:03:01.3]} 5. Nc3 {[%clk 0:02:37.1]}
5... a6 {[%clk 0:03:01.5]} 6. Bc4 {[%clk 0:02:35.9]} 6... e6 {[%clk 0:03:01.1]}
7. O-O {[%clk 0:02:34.6]} 7... b5 {[%clk 0:03:01]} 8. Bb3 {[%clk 0:02:34.5]}
8... Qb6 {[%clk 0:02:59]} 9. Be3 {[%clk 0:02:32.7]} 9... Qb7 {[%clk 0:02:59.1]}
10. Qf3 {[%clk 0:02:23.7]} 10... Be7 {[%clk 0:02:58.5]} 11. Rfe1 {[%clk
0:02:14.5]} 11... O-O {[%clk 0:02:58.1]} 12. a3 {[%clk 0:01:52.8]} 12... Nbd7
{[%clk 0:02:35.8]} 13. Qg3 {[%clk 0:01:36.8]} 13... Re8 {[%clk 0:02:14.1]} 14.
Bh6 {[%clk 0:01:22]} 14... Bf8 {[%clk 0:02:08.6]} 15. Rad1 {[%clk 0:01:16]}
15... Nc5 {[%clk 0:02:05.6]} 16. f3 {[%clk 0:01:12.6]} 16... b4 {[%clk
0:01:56.6]} 17. axb4 {[%clk 0:01:12.2]} 17... Qxb4 {[%clk 0:01:56.1]} 18. Bg5
{[%clk 0:01:09.4]} 18... Nfd7 {[%clk 0:01:43.8]} 19. Nce2 {[%clk 0:00:56]} 19...
Bb7 {[%clk 0:01:33.3]} 20. Nf4 {[%clk 0:00:21.1]} 20... g6 {[%clk 0:01:18.9]}
21. Nh5 {[%clk 0:00:18.5]} 21... a5 {[%clk 0:01:03.3]} 22. Nf6+ {[%clk
0:00:17.2]} 22... Nxf6 {[%clk 0:01:02.9]} 23. Bxf6 {[%clk 0:00:18.1]} 23... a4
{[%clk 0:00:59.1]} 24. Ba2 {[%clk 0:00:16.6]} 24... Qxb2 {[%clk 0:00:56.9]} 25.
Ra1 {[%clk 0:00:12.7]} 25... Qc3 {[%clk 0:00:36.9]} 26. Qh4 {[%clk 0:00:10.3]}
26... Bg7 {[%clk 0:00:30.2]} 27. Bxg7 {[%clk 0:00:10.2]} 27... Kxg7 {[%clk
0:00:30.9]} 28. Rad1 {[%clk 0:00:09.7]} 28... Rac8 {[%clk 0:00:28.2]} 29. f4
{[%clk 0:00:09.8]} 29... Nxe4 {[%clk 0:00:24.9]} 30. Rd3 {[%clk 0:00:09.5]}
30... Qb2 {[%clk 0:00:20.6]} 31. f5 {[%clk 0:00:05]} 31... exf5 {[%clk
0:00:19.6]} 32. Nxf5+ {[%clk 0:00:05.3]} 32... gxf5 {[%clk 0:00:19.2]} 33. Rxe4
{[%clk 0:00:05.6]} 33... Bxe4 {[%clk 0:00:17.7]} 34. Rg3+ {[%clk 0:00:05.4]}
34... Kh8 {[%clk 0:00:17.2]} 35. Qg5 {[%clk 0:00:02.7]} 35... Rg8 {[%clk
0:00:15.9]} 0-1

[Event "*** SCC Grand Prix: Titled Tuesday Blitz"]
[Site "Chess.com"]
[Date "2020.10.06"]
[Round "8"]
[White "zajka-molotok"]
[Black "chessmachine14"]
[Result "1-0"]
[WhiteElo "2472"]
[BlackElo "2285"]
[TimeControl "180+1"]
[EndTime "11:35:31 PDT"]
[Termination "zajka-molotok won by checkmate"]

1. c4 {[%clk 0:03:00.9]} 1... Nf6 {[%clk 0:02:58]} 2. Nc3 {[%clk 0:03:00.5]}
2... g6 {[%clk 0:02:57.2]} 3. e4 {[%clk 0:03:00.6]} 3... d6 {[%clk 0:02:57.1]}
4. f4 {[%clk 0:02:59.9]} 4... Bg7 {[%clk 0:02:57]} 5. Nf3 {[%clk 0:03:00.1]}
5... c5 {[%clk 0:02:54.7]} 6. g3 {[%clk 0:02:58.1]} 6... O-O {[%clk 0:02:54.3]}
7. Bg2 {[%clk 0:02:57.9]} 7... Nc6 {[%clk 0:02:54.1]} 8. O-O {[%clk 0:02:56.8]}
8... Nd7 {[%clk 0:02:48.5]} 9. d3 {[%clk 0:02:55.8]} 9... Nd4 {[%clk 0:02:45.7]}
10. Be3 {[%clk 0:02:53.7]} 10... Nb8 {[%clk 0:02:45.6]} 11. Nh4 {[%clk
0:02:44.8]} 11... Nbc6 {[%clk 0:02:39.7]} 12. f5 {[%clk 0:02:43.5]} 12... e6
{[%clk 0:02:27.7]} 13. fxg6 {[%clk 0:02:21.8]} 13... hxg6 {[%clk 0:02:27]} 14.
Qd2 {[%clk 0:02:15.7]} 14... Ne5 {[%clk 0:02:21.8]} 15. Bg5 {[%clk 0:02:11.3]}
15... f6 {[%clk 0:02:15.5]} 16. Be3 {[%clk 0:02:09.5]} 16... Ng4 {[%clk
0:02:11.4]} 17. Nxg6 {[%clk 0:02:05.3]} 17... Nxe3 {[%clk 0:02:06.5]} 18. Qxe3
{[%clk 0:02:06]} 18... Rf7 {[%clk 0:02:02.3]} 19. Qd2 {[%clk 0:01:56.4]} 19...
f5 {[%clk 0:02:01.2]} 20. exf5 {[%clk 0:01:53.7]} 20... Nxf5 {[%clk 0:01:59.7]}
21. Rae1 {[%clk 0:01:50.6]} 21... Bd4+ {[%clk 0:01:42.9]} 22. Kh1 {[%clk
0:01:49.8]} 22... Qf6 {[%clk 0:01:42.5]} 23. Nf4 {[%clk 0:01:38.8]} 23... Rh7
{[%clk 0:01:29.6]} 24. Nh3 {[%clk 0:01:19.5]} 24... Qg6 {[%clk 0:01:13.1]} 25.
Ne4 {[%clk 0:01:04.6]} 25... e5 {[%clk 0:01:08.1]} 26. Neg5 {[%clk 0:00:57.3]}
26... Rh5 {[%clk 0:00:59.3]} 27. Bd5+ {[%clk 0:00:55.4]} 27... Kg7 {[%clk
0:00:54.4]} 28. Bf7 {[%clk 0:00:53.2]} 28... Nxg3+ {[%clk 0:00:48.5]} 29. hxg3
{[%clk 0:00:50.5]} 29... Bxh3 {[%clk 0:00:10.7]} 30. Bxg6 {[%clk 0:00:50.2]}
30... Kxg6 {[%clk 0:00:09.2]} 31. Nxh3 {[%clk 0:00:48.8]} 31... Rxh3+ {[%clk
0:00:08.9]} 32. Kg2 {[%clk 0:00:49]} 32... Rah8 {[%clk 0:00:08.5]} 33. Rh1
{[%clk 0:00:49.2]} 33... Rxh1 {[%clk 0:00:06.1]} 34. Rxh1 {[%clk 0:00:50.1]}
34... Rxh1 {[%clk 0:00:06]} 35. Kxh1 {[%clk 0:00:49.9]} 35... Kf5 {[%clk
0:00:06]} 36. Kg2 {[%clk 0:00:49.9]} 36... b6 {[%clk 0:00:04.1]} 37. Qe2 {[%clk
0:00:49.7]} 37... a5 {[%clk 0:00:02.6]} 38. b3 {[%clk 0:00:49.8]} 38... Ke6
{[%clk 0:00:03.1]} 39. Qe4 {[%clk 0:00:49.8]} 39... Kd7 {[%clk 0:00:03.1]} 40.
Qd5 {[%clk 0:00:49.6]} 40... Kc7 {[%clk 0:00:03]} 41. Kf3 {[%clk 0:00:49.8]}
41... Kd7 {[%clk 0:00:03.1]} 42. Ke4 {[%clk 0:00:49.8]} 42... Ke7 {[%clk
0:00:03]} 43. Kf5 {[%clk 0:00:50]} 43... Bc3 {[%clk 0:00:02.8]} 44. g4 {[%clk
0:00:49.8]} 44... Kf8 {[%clk 0:00:02.6]} 45. g5 {[%clk 0:00:49.9]} 45... Kg7
{[%clk 0:00:02.7]} 46. g6 {[%clk 0:00:49.8]} 46... Kh6 {[%clk 0:00:02.8]} 47.
Qh1+ {[%clk 0:00:47.7]} 47... Kg7 {[%clk 0:00:02.5]} 48. Qh7+ {[%clk 0:00:48.3]}
48... Kf8 {[%clk 0:00:03.4]} 49. Qf7# {[%clk 0:00:48.8]} 1-0

[Event "*** SCC Grand Prix: Titled Tuesday Blitz"]
[Site "Chess.com"]
[Date "2020.10.06"]
[Round "8"]
[White "diablanni"]
[Black "CrazyMartian"]
[Result "0-1"]
[WhiteElo "2356"]
[BlackElo "2283"]
[TimeControl "180+1"]
[EndTime "11:35:31 PDT"]
[Termination "CrazyMartian won on time"]

1. e4 {[%clk 0:03:00]} 1... c5 {[%clk 0:02:59.9]} 2. Nf3 {[%clk 0:02:59.9]} 2...
d5 {[%clk 0:02:59.8]} 3. exd5 {[%clk 0:02:34.6]} 3... Nf6 {[%clk 0:02:59.3]} 4.
Bb5+ {[%clk 0:02:21.3]} 4... Bd7 {[%clk 0:02:59]} 5. Be2 {[%clk 0:02:16.5]} 5...
Nxd5 {[%clk 0:02:57.1]} 6. d4 {[%clk 0:02:13.7]} 6... e6 {[%clk 0:02:55.6]} 7.
O-O {[%clk 0:02:12.9]} 7... Nc6 {[%clk 0:02:55.1]} 8. c4 {[%clk 0:02:11.7]} 8...
Nf6 {[%clk 0:02:50.6]} 9. d5 {[%clk 0:02:11.6]} 9... exd5 {[%clk 0:02:37.3]} 10.
cxd5 {[%clk 0:02:12.5]} 10... Nb4 {[%clk 0:02:35.7]} 11. Bc4 {[%clk 0:02:04.7]}
11... Bd6 {[%clk 0:02:22.3]} 12. Re1+ {[%clk 0:02:04.1]} 12... Kf8 {[%clk
0:02:22.1]} 13. a3 {[%clk 0:02:02.3]} 13... Na6 {[%clk 0:02:19.5]} 14. Nc3
{[%clk 0:02:01.5]} 14... h6 {[%clk 0:02:12.2]} 15. Nd2 {[%clk 0:01:50.7]} 15...
Qc7 {[%clk 0:01:50.3]} 16. h3 {[%clk 0:01:50.1]} 16... Re8 {[%clk 0:01:48.2]}
17. Rxe8+ {[%clk 0:01:34.2]} 17... Kxe8 {[%clk 0:01:46.7]} 18. Qf1 {[%clk
0:01:29.4]} 18... Nb8 {[%clk 0:01:42.4]} 19. Nb5 {[%clk 0:01:27.9]} 19... Bxb5
{[%clk 0:01:41.8]} 20. Bxb5+ {[%clk 0:01:27.8]} 20... Kd8 {[%clk 0:01:42.3]} 21.
Bc4 {[%clk 0:01:22.7]} 21... Re8 {[%clk 0:01:38.4]} 22. Ba2 {[%clk 0:01:21.5]}
22... Nbd7 {[%clk 0:01:27.6]} 23. Nc4 {[%clk 0:01:21.4]} 23... Nb6 {[%clk
0:01:24.5]} 24. Nxb6 {[%clk 0:01:04.9]} 24... Qxb6 {[%clk 0:01:22.8]} 25. Rb1
{[%clk 0:00:59.4]} 25... Kc7 {[%clk 0:01:06.6]} 26. Be3 {[%clk 0:00:59.4]} 26...
Qa5 {[%clk 0:00:48.3]} 27. Qc4 {[%clk 0:00:54.4]} 27... Re4 {[%clk 0:00:43.6]}
28. Qc2 {[%clk 0:00:46.7]} 28... Kb8 {[%clk 0:00:40.2]} 29. Rc1 {[%clk
0:00:45.4]} 29... Re8 {[%clk 0:00:33.7]} 30. Bc4 {[%clk 0:00:41.4]} 30... Ne4
{[%clk 0:00:23.2]} 31. Bd3 {[%clk 0:00:30.9]} 31... Nf6 {[%clk 0:00:21.6]} 32.
Bc4 {[%clk 0:00:28.6]} 32... Qd8 {[%clk 0:00:20.5]} 33. Rb1 {[%clk 0:00:10.4]}
33... Qe7 {[%clk 0:00:16.3]} 34. b4 {[%clk 0:00:00.8]} 34... cxb4 {[%clk
0:00:16.5]} 0-1

[Event "*** SCC Grand Prix: Titled Tuesday Blitz"]
[Site "Chess.com"]
[Date "2020.10.06"]
[Round "8"]
[White "pavelalexandru07"]
[Black "Kaslask"]
[Result "1-0"]
[WhiteElo "2242"]
[BlackElo "2307"]
[TimeControl "180+1"]
[EndTime "11:35:31 PDT"]
[Termination "pavelalexandru07 won by resignation"]

1. c4 {[%clk 0:02:57.1]} 1... e5 {[%clk 0:02:57.4]} 2. Nc3 {[%clk 0:02:56.1]}
2... Nf6 {[%clk 0:02:57.3]} 3. g3 {[%clk 0:02:55.9]} 3... Nc6 {[%clk 0:02:56.7]}
4. Bg2 {[%clk 0:02:56]} 4... Bc5 {[%clk 0:02:56.4]} 5. d3 {[%clk 0:02:53.4]}
5... h6 {[%clk 0:02:54.4]} 6. a3 {[%clk 0:02:53]} 6... a6 {[%clk 0:02:53.1]} 7.
b4 {[%clk 0:02:52.9]} 7... Ba7 {[%clk 0:02:51.8]} 8. Nf3 {[%clk 0:02:50.3]} 8...
d6 {[%clk 0:02:49.3]} 9. O-O {[%clk 0:02:49.9]} 9... O-O {[%clk 0:02:47.3]} 10.
Bb2 {[%clk 0:02:44.7]} 10... Be6 {[%clk 0:02:42]} 11. Qd2 {[%clk 0:02:41.2]}
11... Nd4 {[%clk 0:02:39.1]} 12. Nxd4 {[%clk 0:02:36.9]} 12... exd4 {[%clk
0:02:38.5]} 13. Nd5 {[%clk 0:02:15.1]} 13... c6 {[%clk 0:02:35.2]} 14. Nf4
{[%clk 0:02:07.3]} 14... Bg4 {[%clk 0:02:31.1]} 15. h3 {[%clk 0:02:04.7]} 15...
Bf5 {[%clk 0:02:29.2]} 16. g4 {[%clk 0:01:47]} 16... Bh7 {[%clk 0:02:28]} 17.
Bf3 {[%clk 0:01:46.5]} 17... Nd7 {[%clk 0:02:22.6]} 18. Rab1 {[%clk 0:01:30.8]}
18... Ne5 {[%clk 0:02:12.8]} 19. Bg2 {[%clk 0:01:31.1]} 19... Qg5 {[%clk
0:02:10.5]} 20. Rbd1 {[%clk 0:01:25.2]} 20... f5 {[%clk 0:02:07.9]} 21. Ne6
{[%clk 0:01:00.8]} 21... Qxd2 {[%clk 0:02:06.1]} 22. Rxd2 {[%clk 0:01:01.4]}
22... Rf6 {[%clk 0:02:03]} 23. gxf5 {[%clk 0:00:55.6]} 23... Bxf5 {[%clk
0:01:56.9]} 24. Nxd4 {[%clk 0:00:55.9]} 24... Bd7 {[%clk 0:01:55.1]} 25. f4
{[%clk 0:00:52.3]} 25... Raf8 {[%clk 0:01:41.8]} 26. fxe5 {[%clk 0:00:50]} 26...
dxe5 {[%clk 0:01:41.3]} 27. Rxf6 {[%clk 0:00:49.2]} 27... Rxf6 {[%clk 0:01:40]}
28. e3 {[%clk 0:00:49.2]} 28... exd4 {[%clk 0:01:27.9]} 29. Bxd4 {[%clk
0:00:49.2]} 29... Bxd4 {[%clk 0:01:23.4]} 30. exd4 {[%clk 0:00:50.1]} 30... Rg6
{[%clk 0:01:18.7]} 31. Kh2 {[%clk 0:00:50.4]} 31... a5 {[%clk 0:01:11.2]} 32.
bxa5 {[%clk 0:00:46.6]} 32... Rg5 {[%clk 0:01:09.8]} 33. d5 {[%clk 0:00:46.8]}
33... Kf7 {[%clk 0:01:05.9]} 34. Rb2 {[%clk 0:00:45.9]} 34... cxd5 {[%clk
0:00:59.4]} 35. Bxd5+ {[%clk 0:00:45.2]} 35... Ke8 {[%clk 0:00:55.1]} 36. Rxb7
{[%clk 0:00:42.9]} 36... Bc8 {[%clk 0:00:53.2]} 37. Rb8 {[%clk 0:00:36.6]} 37...
Kd7 {[%clk 0:00:51.7]} 38. Rb6 {[%clk 0:00:21.5]} 38... Kc7 {[%clk 0:00:48.2]}
39. Rc6+ {[%clk 0:00:21.3]} 39... Kd7 {[%clk 0:00:46.1]} 40. a6 {[%clk
0:00:20.9]} 40... Re5 {[%clk 0:00:33.7]} 41. Rxc8 {[%clk 0:00:18.3]} 41... Re2+
{[%clk 0:00:29.3]} 42. Kg3 {[%clk 0:00:18.1]} 42... Re3+ {[%clk 0:00:19.9]} 43.
Kf4 {[%clk 0:00:17.9]} 43... Rxd3 {[%clk 0:00:19.9]} 44. a7 {[%clk 0:00:16.7]}
44... Rxa3 {[%clk 0:00:19.1]} 45. a8=Q {[%clk 0:00:16.4]} 45... Rxa8 {[%clk
0:00:19.3]} 46. Rxa8 {[%clk 0:00:17]} 1-0

[Event "*** SCC Grand Prix: Titled Tuesday Blitz"]
[Site "Chess.com"]
[Date "2020.10.06"]
[Round "8"]
[White "flexova"]
[Black "gumimis"]
[Result "1-0"]
[WhiteElo "2360"]
[BlackElo "2243"]
[TimeControl "180+1"]
[EndTime "11:35:32 PDT"]
[Termination "flexova won by resignation"]

1. e4 {[%clk 0:02:59.1]} 1... c5 {[%clk 0:02:59.3]} 2. Nf3 {[%clk 0:02:58.3]}
2... d6 {[%clk 0:02:58.5]} 3. Bb5+ {[%clk 0:02:57.9]} 3... Nd7 {[%clk
0:02:57.8]} 4. Ba4 {[%clk 0:02:56.6]} 4... g6 {[%clk 0:02:51.2]} 5. O-O {[%clk
0:02:55.4]} 5... Bg7 {[%clk 0:02:51.1]} 6. c4 {[%clk 0:02:53.2]} 6... e5 {[%clk
0:02:50.1]} 7. Nc3 {[%clk 0:02:46.5]} 7... Ne7 {[%clk 0:02:49.7]} 8. Re1 {[%clk
0:02:45.4]} 8... O-O {[%clk 0:02:48.6]} 9. Rb1 {[%clk 0:02:45.8]} 9... Nb8
{[%clk 0:02:40.6]} 10. b4 {[%clk 0:02:42.1]} 10... Nbc6 {[%clk 0:02:38.5]} 11.
a3 {[%clk 0:02:38.2]} 11... Be6 {[%clk 0:02:29.7]} 12. Nd5 {[%clk 0:02:34.4]}
12... h6 {[%clk 0:02:21.8]} 13. d3 {[%clk 0:02:16.9]} 13... f5 {[%clk
0:02:18.7]} 14. bxc5 {[%clk 0:02:15]} 14... dxc5 {[%clk 0:02:17.9]} 15. Rxb7
{[%clk 0:02:13.3]} 15... fxe4 {[%clk 0:02:06.3]} 16. dxe4 {[%clk 0:02:09.4]}
16... Bxd5 {[%clk 0:02:02.3]} 17. exd5 {[%clk 0:01:56.8]} 17... Na5 {[%clk
0:02:00.4]} 18. Rd7 {[%clk 0:01:49]} 18... Qe8 {[%clk 0:01:48.4]} 19. Nxe5
{[%clk 0:01:35]} 19... Bxe5 {[%clk 0:01:20.8]} 20. Rxe5 {[%clk 0:01:35.9]} 20...
Qf7 {[%clk 0:01:19.6]} 21. f3 {[%clk 0:01:33.3]} 21... Rae8 {[%clk 0:01:13.9]}
22. Bxh6 {[%clk 0:01:28.7]} 22... Nxc4 {[%clk 0:01:12.5]} 23. Re6 {[%clk
0:01:13.6]} 23... Nb6 {[%clk 0:00:52.6]} 24. Bxf8 {[%clk 0:01:10.4]} 24... Nxd7
{[%clk 0:00:51.9]} 25. Bh6 {[%clk 0:00:53.3]} 25... Nf5 {[%clk 0:00:37]} 26. Bg5
{[%clk 0:00:49.2]} 26... Rb8 {[%clk 0:00:26.5]} 27. h4 {[%clk 0:00:36.5]} 27...
Nf8 {[%clk 0:00:22.2]} 28. Rf6 {[%clk 0:00:33.5]} 28... Qb7 {[%clk 0:00:10.9]}
29. d6 {[%clk 0:00:33.2]} 29... Qb1 {[%clk 0:00:09]} 30. Qxb1 {[%clk 0:00:29.3]}
30... Rxb1+ {[%clk 0:00:09.3]} 31. Kh2 {[%clk 0:00:30]} 31... Rb7 {[%clk
0:00:07.7]} 32. Rxf8+ {[%clk 0:00:24.1]} 32... Kxf8 {[%clk 0:00:07.8]} 33. d7
{[%clk 0:00:24.7]} 33... Rxd7 {[%clk 0:00:07]} 34. Bxd7 {[%clk 0:00:25.6]} 34...
c4 {[%clk 0:00:07.2]} 35. Bxf5 {[%clk 0:00:25.5]} 35... gxf5 {[%clk 0:00:06.7]}
36. Bd2 {[%clk 0:00:26.1]} 36... Ke7 {[%clk 0:00:07.3]} 37. Kg3 {[%clk
0:00:26.6]} 37... Ke6 {[%clk 0:00:08.2]} 38. Kf4 {[%clk 0:00:27.1]} 1-0

[Event "*** SCC Grand Prix: Titled Tuesday Blitz"]
[Site "Chess.com"]
[Date "2020.10.06"]
[Round "8"]
[White "SergeyShtyka"]
[Black "canary2016"]
[Result "1-0"]
[WhiteElo "2249"]
[BlackElo "1900"]
[TimeControl "180+1"]
[EndTime "11:35:33 PDT"]
[Termination "SergeyShtyka won by checkmate"]

1. e4 {[%clk 0:02:53.8]} 1... c6 {[%clk 0:02:58.4]} 2. Nf3 {[%clk 0:02:53.5]}
2... d5 {[%clk 0:02:57.5]} 3. Nc3 {[%clk 0:02:53.5]} 3... Bg4 {[%clk 0:02:56.2]}
4. h3 {[%clk 0:02:52.4]} 4... Bxf3 {[%clk 0:02:55.2]} 5. Qxf3 {[%clk 0:02:51.8]}
5... e6 {[%clk 0:02:55.4]} 6. d3 {[%clk 0:02:51.3]} 6... Nd7 {[%clk 0:02:52.8]}
7. a3 {[%clk 0:02:51.1]} 7... Ngf6 {[%clk 0:02:49.9]} 8. g3 {[%clk 0:02:50.9]}
8... Bd6 {[%clk 0:02:46.1]} 9. Bg2 {[%clk 0:02:50.7]} 9... O-O {[%clk
0:02:44.3]} 10. O-O {[%clk 0:02:50.7]} 10... Rc8 {[%clk 0:02:43]} 11. Qe2 {[%clk
0:02:48.5]} 11... d4 {[%clk 0:02:30.7]} 12. Nb1 {[%clk 0:02:47.6]} 12... c5
{[%clk 0:02:30.2]} 13. b3 {[%clk 0:02:47]} 13... b5 {[%clk 0:02:26.2]} 14. a4
{[%clk 0:02:46.8]} 14... a6 {[%clk 0:02:25.4]} 15. f4 {[%clk 0:02:45]} 15... Be7
{[%clk 0:02:19.8]} 16. g4 {[%clk 0:02:36.4]} 16... Nb6 {[%clk 0:02:16.1]} 17. g5
{[%clk 0:02:17.1]} 17... Nfd7 {[%clk 0:02:14.9]} 18. axb5 {[%clk 0:02:15.6]}
18... axb5 {[%clk 0:02:13.8]} 19. Na3 {[%clk 0:02:15]} 19... b4 {[%clk
0:01:56.8]} 20. Nc4 {[%clk 0:02:15.1]} 20... Nxc4 {[%clk 0:01:55.8]} 21. bxc4
{[%clk 0:02:16]} 21... Qb6 {[%clk 0:01:50.8]} 22. f5 {[%clk 0:02:05]} 22... Ra8
{[%clk 0:01:43.5]} 23. Bf4 {[%clk 0:01:55.3]} 23... e5 {[%clk 0:01:38.9]} 24.
Bd2 {[%clk 0:01:53]} 24... Bd6 {[%clk 0:01:28]} 25. Rfb1 {[%clk 0:01:32.4]}
25... Rfb8 {[%clk 0:01:23.8]} 26. h4 {[%clk 0:01:30.7]} 26... Qc7 {[%clk
0:01:16.9]} 27. Kh2 {[%clk 0:01:26.9]} 27... Nb6 {[%clk 0:01:15.5]} 28. h5
{[%clk 0:01:24.6]} 28... Na4 {[%clk 0:01:13.8]} 29. Qg4 {[%clk 0:01:20.9]} 29...
Nc3 {[%clk 0:01:12.6]} 30. Rf1 {[%clk 0:01:10.6]} 30... Qb7 {[%clk 0:00:57.8]}
31. g6 {[%clk 0:01:07]} 31... Ra2 {[%clk 0:00:42.5]} 32. Bxc3 {[%clk 0:01:04.5]}
32... Rxc2 {[%clk 0:00:36.2]} 33. gxh7+ {[%clk 0:00:57.2]} 33... Kxh7 {[%clk
0:00:32.8]} 34. f6 {[%clk 0:00:56.9]} 34... Rg8 {[%clk 0:00:20.5]} 35. Be1
{[%clk 0:00:49.6]} 35... gxf6 {[%clk 0:00:11.9]} 36. Qf5+ {[%clk 0:00:49.6]}
36... Kh8 {[%clk 0:00:11.5]} 37. Qxf6+ {[%clk 0:00:49.2]} 37... Kh7 {[%clk
0:00:08.5]} 38. Rf2 {[%clk 0:00:43.7]} 38... Rxf2 {[%clk 0:00:05.4]} 39. Bxf2
{[%clk 0:00:44.6]} 39... Qe7 {[%clk 0:00:04.7]} 40. Qxe7 {[%clk 0:00:40.5]}
40... Bxe7 {[%clk 0:00:04.6]} 41. Ra7 {[%clk 0:00:41.2]} 41... Re8 {[%clk
0:00:03.3]} 42. Bh3 {[%clk 0:00:36]} 42... Kh6 {[%clk 0:00:02.8]} 43. Bg4 {[%clk
0:00:34.6]} 43... f6 {[%clk 0:00:02.1]} 44. Be1 {[%clk 0:00:30.6]} 44... Bd6
{[%clk 0:00:01.5]} 45. Bd2# {[%clk 0:00:29.7]} 1-0

[Event "*** SCC Grand Prix: Titled Tuesday Blitz"]
[Site "Chess.com"]
[Date "2020.10.06"]
[Round "8"]
[White "Rodalquilar"]
[Black "hungrycaterpillar4"]
[Result "0-1"]
[WhiteElo "2773"]
[BlackElo "2649"]
[TimeControl "180+1"]
[EndTime "11:35:36 PDT"]
[Termination "hungrycaterpillar4 won on time"]

1. d4 {[%clk 0:03:00.9]} 1... d5 {[%clk 0:03:00]} 2. Bf4 {[%clk 0:03:01.1]} 2...
c5 {[%clk 0:02:59.9]} 3. e3 {[%clk 0:03:01.1]} 3... Nc6 {[%clk 0:03:00.5]} 4.
Nf3 {[%clk 0:03:01.2]} 4... Nf6 {[%clk 0:02:59.9]} 5. Nbd2 {[%clk 0:03:01.3]}
5... Qb6 {[%clk 0:03:00.1]} 6. dxc5 {[%clk 0:03:01]} 6... Qxb2 {[%clk
0:03:00.6]} 7. Rb1 {[%clk 0:03:01.3]} 7... Qc3 {[%clk 0:03:01.3]} 8. Bb5 {[%clk
0:03:01.6]} 8... g6 {[%clk 0:03:01.4]} 9. O-O {[%clk 0:02:59.5]} 9... Bg7 {[%clk
0:03:01.6]} 10. Nb3 {[%clk 0:02:42.6]} 10... O-O {[%clk 0:02:58.5]} 11. Bxc6
{[%clk 0:02:42.9]} 11... bxc6 {[%clk 0:02:58.9]} 12. Be5 {[%clk 0:02:43.4]}
12... Qc4 {[%clk 0:02:59.5]} 13. Qd4 {[%clk 0:02:41]} 13... Qxd4 {[%clk
0:02:59.2]} 14. Nbxd4 {[%clk 0:02:13.7]} 14... Ba6 {[%clk 0:02:57.7]} 15. Nxc6
{[%clk 0:02:13.5]} 15... e6 {[%clk 0:02:19.7]} 16. Rfe1 {[%clk 0:01:55.8]} 16...
Ne4 {[%clk 0:02:18]} 17. Bd4 {[%clk 0:01:27.9]} 17... f6 {[%clk 0:01:59.4]} 18.
Nb4 {[%clk 0:01:16]} 18... Bc4 {[%clk 0:01:59.5]} 19. c6 {[%clk 0:00:51.7]}
19... Rfc8 {[%clk 0:01:56.5]} 20. a4 {[%clk 0:00:34.7]} 20... e5 {[%clk
0:01:54]} 21. Ba1 {[%clk 0:00:33.5]} 21... a5 {[%clk 0:01:54.3]} 22. Nd3 {[%clk
0:00:31.3]} 22... Rxc6 {[%clk 0:01:54.6]} 23. Rb7 {[%clk 0:00:29.8]} 23... Ba6
{[%clk 0:01:46.5]} 24. Rd7 {[%clk 0:00:27.6]} 24... Rd6 {[%clk 0:01:47]} 25.
Rxd6 {[%clk 0:00:23]} 25... Nxd6 {[%clk 0:01:47.9]} 26. Nc5 {[%clk 0:00:23.9]}
26... Bc4 {[%clk 0:01:30.8]} 27. Rb1 {[%clk 0:00:23.9]} 27... Rc8 {[%clk
0:01:16.6]} 28. Ne6 {[%clk 0:00:24]} 28... Bh8 {[%clk 0:01:02.2]} 29. Nd2 {[%clk
0:00:12.9]} 29... Kf7 {[%clk 0:00:51.2]} 30. Nxc4 {[%clk 0:00:05.1]} 30... dxc4
{[%clk 0:00:50.1]} 31. Rb6 {[%clk 0:00:01.7]} 31... Kxe6 {[%clk 0:00:50]} 32.
Bc3 {[%clk 0:00:02.6]} 32... Rc5 {[%clk 0:00:47.3]} 33. Ra6 {[%clk 0:00:02.3]}
33... Kd5 {[%clk 0:00:41.5]} 34. Bxa5 {[%clk 0:00:03.2]} 34... Rc6 {[%clk
0:00:42.1]} 35. Ra7 {[%clk 0:00:03.2]} 35... f5 {[%clk 0:00:29.4]} 36. Bb4
{[%clk 0:00:03.6]} 36... e4 {[%clk 0:00:24.2]} 37. Rxh7 {[%clk 0:00:03.2]} 37...
Rb6 {[%clk 0:00:22.3]} 38. Be1 {[%clk 0:00:02.6]} 38... Rb1 {[%clk 0:00:21.1]}
39. Kf1 {[%clk 0:00:03.1]} 39... Bc3 {[%clk 0:00:21.3]} 0-1